Cogmind - Beta 14 @@@ ROGUE MODE // 2024.11.04 @ 12:16:46 Player: Eddie Result: Destroyed by 67-N8V(R) with Subdweller Beam Cannon Performance ------------- Evolutions (0) 0 Regions Visited (2) 400 Robots Destroyed (12) 60 Value Destroyed (374) 374 Prototype IDs (0) 0 Alien Tech Used (0) 0 Bonus (0) 0 TOTAL SCORE: 834 Bonus ------- None Cogmind --------- Core Integrity 0/250 Matter 254/300 Energy 84/100 System Corruption 0% Temperature Cool (9) Movement Core (150) Ox2 Location -10/Subcaves Parts ------- > --- POWER (1) -------- (None) > --- PROPULSION (2) --- (None) > --- UTILITY (2) ------ (None) > --- WEAPON (2) ------- Subdweller Beam Cannon > --- INVENTORY (5) ---- Light Ion Engine Aluminum Leg Small Storage Unit Peak State ------------ > --- POWER ------------ Ion Engine > --- PROPULSION ------- Aluminum Leg Aluminum Leg > --- UTILITY ---------- Scrap Shield > --- WEAPON ----------- Small Laser Assault Rifle > --- INVENTORY -------- Light Ion Engine Aluminum Leg Small Storage Unit [Rating: 9] Favorites ----------- Power Ion Engine Engine Ion Engine Propulsion Aluminum Leg Leg Aluminum Leg Utility Small Storage Unit Storage Small Storage Unit Protection Scrap Shield Weapon Small Laser Energy Gun Small Laser Energy Cannon Subdweller Beam Cannon Ballistic Gun Assault Rifle Build | -11 -10 -10 ------- Run | Yrd Mat Sub Slots Evolved . | . . . Power . | . . . Propulsion . | . . . Utility . | . . . Weapon . | . . . Parts Attached 12 | 6 1 5 Power 1 | 1 . . Engine 1 | 1 . . Core . | . . . Reactor . | . . . Propulsion 5 | 2 1 2 Treads . | . . . Leg 5 | 2 1 2 Wheel . | . . . Hover . | . . . Flight . | . . . Utility 2 | 1 . 1 Device . | . . . Storage 1 | 1 . . Processor . | . . . Hackware . | . . . Protection 1 | . . 1 Artifact . | . . . Weapon 4 | 2 . 2 Energy Gun 1 | 1 . . Energy Cannon 1 | . . 1 Ballistic Gun 2 | 1 . 1 Ballistic Cannon . | . . . Launcher . | . . . Special Weapon . | . . . Impact Weapon . | . . . Slashing Weapon . | . . . Piercing Weapon . | . . . Special Melee Weapon . | . . . Unidentified Prototypes . | . . . Parts Lost 8 | . . 8 Power 1 | . . 1 Propulsion 4 | . . 4 Utility 1 | . . 1 Weapon 2 | . . 2 Highest Loss Streak 6 | . . 6 To Critical Strikes 2 | . . 2 Average Slot Usage (%) 82 | . 85 78 Engine 13 | . 14 12 Leg 27 | . 28 26 Storage 12 | . 14 10 Energy Gun 13 | . 14 13 Ballistic Gun 13 | . 14 13 Peak Build Rating 9 | 6 6 9 Average Rating 5 | 4 6 5 On Entrance 4 | . 6 6 Naked Turns 1 | . . 1 Heaviest Build 26 | 13 13 26 Greatest Support 20 | 20 20 20 Greatest Overweight (x) 4 | . . 4 Average Overweight (x) . | . . . Largest Inventory Capacity 8 | 8 8 8 Average Capacity 7 | 6 8 7 Most Carried 7 | 2 5 7 Average Carried 4 | 1 4 5 Final Capacity 8 | 8 8 5 Final Carried 5 | 2 5 3 Class Distribution -------------------- 100% | Mutant Dominant Class ---------------- Mutant | -10/Materials Mutant | -10/Subcaves Resources | -11 -10 -10 ----------- Run | Yrd Mat Sub Matter Collected 394 | 225 138 31 Remotely . | . . . Salvage Created 459 | . 258 201 Parts 27 | . 18 9 Haulers Intercepted . | . . . Recyclers Shooed . | . . . Parts Field Recycled . | . . . Retrieved Matter . | . . . Parts Self-Destructed 5 | . . 5 Prevented . | . . . Kills | -11 -10 -10 ------- Run | Yrd Mat Sub Combat Hostiles Destroyed 12 | . 8 4 Guns 12 | . 8 4 Classes Destroyed 3 | . 2 1 Swarmer 3 | . 3 . Grunt 7 | . 5 2 Subdweller 2 | . . 2 Best Kill Streak 2 | . 2 2 Combat Bots Only 2 | . 2 2 Max Kills in Single Turn 1 | . 1 1 Gunslinging . | . . . Exploded . | . . . Melee . | . . . Uniques/NPCs Destroyed . | . . . Combat | -11 -10 -10 -------- Run | Yrd Mat Sub Hostile Shots Fired 109 | . 42 67 Missed 38 | . 14 24 Damage Taken 1267 | . 327 940 Core 269 | . 79 190 Absorbed by Shields . | . . . Core Remaining (%) 100 | 100 . . Volleys Fired 54 | . 31 23 Largest 2 | . 2 2 Hottest 80 | . 60 80 Shots Fired 103 | . 61 42 Gun 102 | . 61 41 Cannon 1 | . . 1 Launcher . | . . . Special . | . . . Kinetic 50 | . 31 19 Thermal 53 | . 30 23 Explosive . | . . . Electromagnetic . | . . . Robot Hit Streak 19 | . 11 19 Robot Miss Streak 3 | . 3 2 Penetration Max . | . . . Secondary Targets 1 | . . 1 Max Gunslinging Chain 1 | . . 1 Shots Hit Robots 75 | . 41 34 Core Hits 25 | . 14 11 Critical Kills . | . . . Critical Parts Destroyed . | . . . Critical Strikes . | . . . Melee Attacks . | . . . Impact . | . . . Slashing . | . . . Piercing . | . . . Sneak Attacks . | . . . Combat Hostiles . | . . . Follow-up Attacks . | . . . Damage Inflicted 895 | . 486 409 Guns 865 | . 486 379 Cannons 30 | . . 30 Explosions . | . . . Melee . | . . . Ramming . | . . . Kinetic 418 | . 234 184 Thermal 477 | . 252 225 Explosive . | . . . Electromagnetic . | . . . Impact . | . . . Slashing . | . . . Piercing . | . . . Highest Corruption . | . . . Average Corruption . | . . . Corruption Purged . | . . . Corruption Blocked . | . . . Overload Shots . | . . . Overflow Damage . | . . . Projectiles . | . . . Explosions . | . . . Melee . | . . . Knockbacks . | . . . Impact . | . . . Kinetic . | . . . Secondary . | . . . Self-Inflicted Damage . | . . . Shots . | . . . Rammed . | . . . Targets Rammed . | . . . Kicked . | . . . Crushed . | . . . Highest Temperature 90 | . 90 . Average Temperature 31 | . 31 . Received Heat Transfer 495 | . 180 315 Siege Activations . | . . . Robots Corrupted . | . . . Combat Hostiles . | . . . Parts Fried . | . . . Impact Corruptions . | . . . Robots Melted . | . . . Combat Hostiles . | . . . Parts Melted 1 | . 1 . Heat Transferred 1062 | . 575 487 Parts Sabotaged . | . . . Parts Stolen . | . . . Parts Stripped . | . . . Power Chain Reactions . | . . . Alert | -11 -10 -10 ------- Run | Yrd Mat Sub Peak Influence 326 | . 326 . Initial . | . . . Average 150 | . 178 . Maximum Alert Level 1 | . 1 . Low Security (%) 55 | 100 47 . Level 1 44 | . 52 . Level 2 . | . . . Level 3 . | . . . Level 4 . | . . . Level 5 . | . . . High Security . | . . . Max Security . | . . . Squads Dispatched 1 | . 1 . Investigation . | . . . Extermination . | . . . Reinforcement 1 | . 1 . Assault . | . . . Garrison . | . . . Intercept . | . . . Searches Triggered . | . . . Construction Impeded . | . . . Haulers Reinforced . | . . . Active Scanning Responses . | . . . Cargo Convoy Interrupts . | . . . Stealth | -11 -10 -10 --------- Run | Yrd Mat Sub Distress Signals 1 | . 1 . Communications Jammed . | . . . Distress Signals . | . . . Times Spotted 29 | . 19 10 Peak Tracking Total 5 | . 5 5 Tactical Retreats 6 | . 5 1 Traps | -11 -10 -10 ------- Run | Yrd Mat Sub Traps Triggered . | . . . Indirectly . | . . . Trap Hack Attempts . | . . . Triggered . | . . . Disarmed . | . . . Reprogrammed . | . . . Reused . | . . . Traps Extracted . | . . . Installed . | . . . Triggered . | . . . Machines | -11 -10 -10 ---------- Run | Yrd Mat Sub Machines Disabled . | . . . Max in Single Turn . | . . . Machines Repaired . | . . . Machines Dismantled . | . . . Machines Sabotaged . | . . . Overloaded Fab Kills . | . . . Hacking | -11 -10 -10 --------- Run | Yrd Mat Sub Machines Accessed . | . . . Terminals . | . . . Fabricators . | . . . Repair Stations . | . . . Recycling Units . | . . . Scanalyzers . | . . . Garrison Access . | . . . Total Hacks . | . . . Successful . | . . . Failed . | . . . Catastrophic . | . . . Database Lockouts . | . . . Manual . | . . . Terminals . | . . . Fabricators . | . . . Repair Stations . | . . . Recycling Units . | . . . Scanalyzers . | . . . Garrison Access . | . . . Terminal Hacks . | . . . Fabricator Hacks . | . . . Repair Station Hacks . | . . . Recycling Unit Hacks . | . . . Scanalyzer . | . . . Garrison Access Hacks . | . . . Unauthorized Hacks . | . . . Terminals . | . . . Fabricators . | . . . Repair Stations . | . . . Recycling Units . | . . . Scanalyzers . | . . . Garrison Access . | . . . Data Cores Recovered . | . . . Used . | . . . Hacking Detections . | . . . Full Trace Events . | . . . Feedback Events . | . . . Feedback Blocked . | . . . Robot Schematics Acquired . | . . . Robots Built . | . . . Authchips . | . . . Time . | . . . Total Robot Build Rating . | . . . Part Schematics Acquired . | . . . Parts Built . | . . . Authchips . | . . . Time . | . . . Total Part Build Rating . | . . . Parts Repaired . | . . . Time . | . . . Parts Recycled . | . . . Recycled Matter . | . . . Retrieved Matter . | . . . Retrieved Components . | . . . Parts Scanalyzed . | . . . Part Schematics Acquired . | . . . Parts Damaged . | . . . Bothacking | -11 -10 -10 ------------ Run | Yrd Mat Sub Used RIF Installer . | . . . Robots Hacked . | . . . Non-combat . | . . . Combat . | . . . Robot Hacks Applied . | . . . Relay Couplers Released . | . . . Fabnet Peak Effective % . | . . . Robots Rewired . | . . . Allies Hacked . | . . . Hacks Repelled . | . . . Allies | -11 -10 -10 -------- Run | Yrd Mat Sub Total Allies . | . . . Largest Group . | . . . Highest-Rated Group . | . . . Highest-Rated Ally . | . . . Total Orders . | . . . Ally Attacks . | . . . Total Damage . | . . . Kills . | . . . Allies Corrupted . | . . . Allies Melted . | . . . Intel | -11 -10 -10 ------- Run | Yrd Mat Sub Robot Analysis Total . | . . . Derelict Logs Recovered . | . . . Drone Launches . | . . . Drone Recoveries . | . . . Exploration | -11 -10 -10 ------------- Run | Yrd Mat Sub Turns Passed 721 | 67 355 299 Spaces Moved 401 | 51 185 165 Core 9 | 6 . 3 Treads . | . . . Legs 392 | 45 185 162 Wheels . | . . . Hover . | . . . Flight . | . . . Fastest Speed 50 | 50 120 50 Average Speed 122 | 111 120 128 Slowest Speed 250 | 120 120 250 Overloaded Moves . | . . . Propulsion Burnouts . | . . . Robots Hopped . | . . . Cave-ins Triggered . | . . . Exploration Rate (%) 10 | 4 18 8 Regions Visited 2 Branch Regions 1 Pre-discovered Areas . | . . . Known Exits Taken . | . . . Unknown Exits Taken 2 | 1 1 . Scrap Searched . | . . . Spaces Dug . | . . . Terrain Destroyed . | . . . Melee . | . . . Projectile . | . . . AOE . | . . . Terrain Rammed . | . . . Walls Destroyed . | . . . Machines Disabled . | . . . Actions | -11 -10 -10 --------- Run | Yrd Mat Sub Total 524 | 58 256 210 Wait 52 | . 38 14 Move 399 | 50 184 165 Hop . | . . . Pick Up 5 | 2 2 1 Fast Attach 7 | 6 . 1 Attach 3 | . . 3 Detach 1 | . . 1 Swap 2 | . 1 1 Drop 1 | . . 1 Fire 54 | . 31 23 Melee . | . . . Ram . | . . . Kick . | . . . Crush . | . . . Escape Stasis . | . . . Rewire . | . . . Trap . | . . . Miscellaneous . | . . . Route ------- -11/Scrapyard -10/Materials -10/Subcaves History --------- Turn | Location | Event 3 | -11/Scrapyard | Discovered new exit (range 15) 68 | -11/Scrapyard | Entered Materials 318 | -10/Materials | Build established: Mutant 408 | -10/Materials | Discovered new exit (range 12) 423 | -10/Materials | Entered Subcaves 464 | -10/Subcaves | A swath of the cavern ceiling suddenly collapsed 624 | -10/Subcaves | Ambushed by swarm of Subdwellers 631 | -10/Subcaves | Core integrity fell below 50% 707 | -10/Subcaves | Core integrity fell below 20% 722 | -10/Subcaves | Destroyed by 67-N8V(R) with Subdweller Beam Cannon Last Messages --------------- 00636_ Critical hit (Destroy). 00636_ Aluminum Leg destroyed. 00650_ DU-U4M(u) tweaks Twisted Machinery. 00680_ Scrap Shield destroyed. 00686_ Ion Engine destroyed. 00692_ ZZ-C9J(R) destroyed. 00692_ Switching to secondary target: G7-4UM(R). Disabling or destroying stationary machines or terrain requires that a single hit meet or exceed the object's Armor value. Inspect machines by right-clicking on them, and walls via Ctrl-RMB (or as any other object in Keyboard Mode). Hovering the cursor over an object also shows its Armor in the Scan window. 00702_ Aluminum Leg destroyed. 00708_ Assault Rifle destroyed. 00710_ 8P-FFH(R) destroyed. 00716_ Aluminum Leg destroyed. 00716_ Sml. Laser destroyed. 00717_ Acquired Sub. Beam Cannon. When the line of fire is red, you are attempting to shoot through an object at another target, which incurs significant penalties. Map ----- +----------------------------------------------------+ | ???????????# = ##?????????????????????? | | ???????????? !% % "##????????????????????? | | ????????????? ""???##""""????????????? | | ????????????? "#???? """"????????????? | | ???????????????? % ##??? " "#????????????? | | ???????????????????# ##?? ""#?????????????? | | ????????????????????# ####""####??????????? | | ?????????????????????# #??????????? | | ?????????????????????## #??????????? | | ??????????????????????## ##??????????? | | ????????????????????#### ## #???????????? | | ????????????????????# ## #???????????? | | ????????????????????# ##??????????? | | ????????????????????## #??????????? | | ?????????????????????# #??????????? | | ?????????????????????## ##??????????? | | ??????????????????????## ####???????????? | | ???????????????????????# ##??????????????? | | ???????????????????????#### #???????????????? | | ????????????????????#?????##### ##??????????????? | | ???????????????????## ???????# #??????????????? | | ?????????????????### #??????# ##??????????????? | | ????##???????????# ###???## #???????????????? | | ????#"???????????# #;;;##### ##??????????????? | | ????# #??????????# ###;;;%##! #??????????????? | | ????? ??????????####[;; @!R=#" ##??????????????? | | ?????# ?####????###%#; ;##;#!;;###???????????????? | | ????## ## ###### ##%####?#R*###?????????????????? | | ????#" " % ##=# #?##;#???????????????????? | | ?#### ###!###??";#???????????????????? | | ?# # #?### ?"##;???????????????????? | | ?## ## ### ####"??";??????????????????? | | ??# # ## ##?#???"?#?????????????????? | | ??# #?????#???????????????????? | | ??## #### #????????????????????????? | | ???## ####??## #????????????????????????? | | ????#######??????########????????????????????????? | | ?????????????????????????????????????????????????? | | ?????????????????????????????????????????????????? | | ?????????????????????????????????????????????????? | | ?????????????????????????????????????????????????? | | ?????????????????????????????????????????????????? | | ?????????????????????????????????????????????????? | | ?????????????????????????????????????????????????? | | ?????????????????????????????????????????????????? | | ?????????????????????????????????????????????????? | | ?????????????????????????????????????????????????? | | ?????????????????????????????????????????????????? | | ?????????????????????????????????????????????????? | | ?????????????????????????????????????????????????? | +----------------------------------------------------+ Best States ------------- Heat Dissipation 25 Energy Generation 10 Energy Capacity 250 Matter Stores 300 Matter Capacity 300 Sight Range 16 Terrain Scan Density 10 Armor Coverage 800 Evasion (%) 55 Item Schematics ----------------- None Robot Schematics ------------------ None Fabricated ------------ Nothing Alien Tech Used ----------------- None Achievements -------------- None Challenges ------------ None Game ------ Seed SpikedStasisMicroactuators Manual? 0 Play Time 00:07:40 Cumulative 30.2 hours Start 2024.11.04 @ 12:11:36 End 2024.11.04 @ 12:16:46 Sessions 1 Manual Loads 0 Difficulty Rogue Special Mode None Game No. 46 Rogue 46 Adventurer 0 Explorer 0 Win Type - Total 0 Types 0/0/0/0/0/0/0/0/0 Lore% 11 Gallery% 28 Achievement% 26 Wizard Run 0 Options --------- Layout 0 ASCII 0 Keyboard 1 Movement Numpad Keybinds 0 Fullscreen 2 Font 18/SmallcapsGlow Map View 76x50 Zoom Use 0% Tactical HUD 1 Map Filters NONE Filters NONE Steam 1 RUN: 83627400-b7d2-4920-942f-e4368043c13b